fUST/lending_fUST_20250311
["ID","MTS","AMOUNT","RATE_DAILY","PERIOD"]
[355851961,1741635305544,-500.0,0.00051232,120]
[355851963,1741635305623,-1155.91,0.00051232,120]
[355851965,1741635305702,-5746.79,0.00051232,120]
[355851966,1741635305782,-500.0,0.00051232,120]
[355851969,1741635305864,-500.0,0.00051232,120]
[355851970,1741635305946,-1565.3,0.00051232,120]
[355851972,1741635306029,-1234.92,0.00051232,120]
[355851975,1741635306111,-576.71,0.00051232,120]
[355851977,1741635306193,-10283.92,0.00051232,120]
[355851979,1741635306276,-500.0,0.00051232,120]
[355851980,1741635306354,-642.88,0.00051232,120]
[355851983,1741635306441,-500.0,0.00051232,120]
[355851985,1741635306524,-1531.33,0.00051232,120]
[355851987,1741635306604,-2059.24,0.00051232,120]
[355851989,1741635306689,-500.0,0.00051232,120]
[355851990,1741635306771,-539.57664702,0.00051232,120]
[355851993,1741635306852,-222.90810343,0.00051232,120]
[355851995,1741635306939,-634.88606622,0.00051232,120]
[355851997,1741635307022,-500.0,0.00051232,120]
[355851999,1741635307105,-500.0,0.00051232,120]
[355852001,1741635307193,-969.22,0.00051232,120]
[355852003,1741635307273,-5529.22,0.00051232,120]
[355852005,1741635307351,-500.0,0.00051232,120]
[355852007,1741635307429,-760.6,0.00051232,120]
[355852009,1741635307514,-500.0,0.00051232,120]
[355852010,1741635307591,-616.83,0.00051232,120]
[355852013,1741635307665,-500.0,0.00051232,120]
[355852015,1741635307744,-3643.64,0.00051232,120]
[355852017,1741635307821,-500.0,0.00051232,120]
[355852019,1741635307896,-856.77,0.00051232,120]
[355852021,1741635307971,-500.0,0.00051232,120]
[355852023,1741635308047,-500.0,0.00051232,120]
[355852024,1741635308123,-704.65,0.00051232,120]
[355852027,1741635308203,-2315.64,0.00051232,120]
[355852029,1741635308279,-500.0,0.00051232,120]
[355852031,1741635308359,-951.52,0.00051232,120]
[355852032,1741635308444,-593.56,0.00051232,120]
[355852035,1741635308522,-500.0,0.00051232,120]
[355852037,1741635308600,-500.0,0.00051232,120]
[355852039,1741635308685,-554.52509187,0.00051232,120]
[355852041,1741635308767,-798.39,0.00051232,120]
[355852042,1741635308844,-500.0,0.00051232,120]
[355852045,1741635308926,-9407.99,0.00051232,120]
[355852047,1741635309009,-500.0,0.00051232,120]
[355852049,1741635309090,-2243.67,0.00051232,120]
[355852051,1741635309172,-500.0,0.00051232,120]
[355852053,1741635309250,-500.0,0.00051232,120]
[355852055,1741635309329,-820.04,0.00051232,120]
[355852057,1741635309404,-500.0,0.00051232,120]
[355852059,1741635309482,-500.0,0.00051232,120]
[355852061,1741635309557,-815.36,0.00051232,120]
[355852063,1741635309632,-860.18,0.00051232,120]
[355852064,1741635309709,-500.0,0.00051232,120]
[355852066,1741635309787,-1100.44,0.00051232,120]
[355852069,1741635309867,-500.0,0.00051232,120]
[355852071,1741635309947,-500.0,0.00051232,120]
[355852072,1741635310023,-1478.73,0.00051232,120]
[355852074,1741635310102,-853.85,0.00051232,120]
[355852077,1741635310187,-500.0,0.00051232,120]
[355852078,1741635310269,-2026.71,0.00051232,120]
[355852080,1741635310339,-1230.26,0.00051232,120]
[355852082,1741635310415,-2062.52,0.00051232,120]
[355852084,1741635310492,-8461.42,0.00051232,120]
[355852087,1741635310575,-826.94,0.00051232,120]
[355852089,1741635310657,-568.14,0.00051232,30]
[355852091,1741635310738,-730.52,0.00051232,120]
[355852092,1741635310817,-579.0205979,0.00051232,120]
[355852095,1741635310899,-500.0,0.00051232,120]
[355852097,1741635310981,-1362.72,0.00051232,120]
[355852099,1741635311063,-898.69,0.00051232,120]
[355852100,1741635311153,-500.0,0.00051232,120]
[355852103,1741635311241,-8437.24,0.00051232,120]
[355852104,1741635311327,-369.79001077,0.00051232,120]
[355852106,1741635311403,-583.10856997,0.00051232,120]
[355852109,1741635311485,-1707.87,0.00051232,120]
[355852110,1741635311565,-1044.86,0.00051232,120]
[355852113,1741635311651,-1111.35,0.00051232,120]
[355852114,1741635311739,-618.73,0.00051232,120]
[355852117,1741635311827,-716.97,0.00051232,120]
[355852119,1741635311916,-500.0,0.00051232,120]
[355852123,1741635312188,-1423.76,0.00051232,120]
[355852125,1741635312264,-814.36,0.00051232,120]
[355852127,1741635312336,-563.54382837,0.00051232,120]
[355852129,1741635312406,-1149.08,0.00051232,120]
[355852131,1741635312476,-500.0,0.00051232,120]
[355852133,1741635312549,-500.0,0.00051232,120]
[355852135,1741635312621,-1161.71,0.00051232,120]
[355852137,1741635312692,-500.0,0.00051232,120]
[355852138,1741635312755,-500.0,0.00051232,120]
[355852139,1741635312828,-500.0,0.00051232,120]
[355852140,1741635312896,-1592.46,0.00051232,120]
[355852141,1741635312967,-858.08,0.00051232,120]
[355852142,1741635313039,-3230.62,0.00051232,120]
[355852144,1741635313110,-500.0,0.00051232,120]
[355852146,1741635313176,-1019.85,0.00051232,120]
[355852148,1741635313259,-2631.0,0.00051232,120]
[355852150,1741635313338,-3700.98,0.00051232,120]
[355852152,1741635313411,-500.0,0.00051232,120]
[355852154,1741635313486,-621.98,0.00051232,120]
[355852156,1741635313564,-500.0,0.00051232,120]
[355852158,1741635313645,-500.0,0.00051232,120]
[355852160,1741635313722,-899.81,0.00051232,120]
[355852162,1741635313798,-3744.89,0.00051232,120]
[355852163,1741635313873,-507.23,0.00051232,120]
[355852166,1741635313949,-360.71408389,0.00051232,120]
[355852168,1741635314026,-930.1,0.00051232,120]
[355852170,1741635314102,-500.0,0.00051232,120]
[355852172,1741635314183,-500.0,0.00051232,120]
[355852173,1741635314265,-500.0,0.00051232,120]
[355852176,1741635314346,-2361.72,0.00051232,120]
[355852177,1741635314423,-604.77,0.00051232,120]
[355852179,1741635314505,-1945.21,0.00051232,120]
[355852181,1741635314581,-599.26,0.00051232,120]
[355852184,1741635314655,-2734.65,0.00051232,120]
[355852186,1741635314729,-500.0,0.00051232,120]
[355852187,1741635314805,-500.0,0.00051232,120]
[355852190,1741635314879,-500.0,0.00051232,120]
[355852192,1741635314957,-2534.35,0.00051232,120]
[355852193,1741635315037,-500.0,0.00051232,120]
[355852196,1741635315122,-161.898849,0.00051251,120]
[355852198,1741635315212,-161.898849,0.00051251,120]
[355852199,1741635315293,-161.898849,0.00051251,120]
[355852201,1741635315370,-161.898849,0.00051251,120]
[355852204,1741635315447,-161.898849,0.00051251,120]
[355852205,1741635315525,-161.898849,0.00051251,120]
[355852208,1741635315601,-151.0,0.00051251,120]
[355852210,1741635315679,-151.0,0.00051251,120]
[355852212,1741635315760,-151.0,0.00051251,120]
[355852214,1741635315837,-151.0,0.00051251,120]
[355852215,1741635315914,-345.231322,0.00051251,120]
[355852217,1741635315994,-345.231322,0.00051251,120]
[355852220,1741635316075,-345.231322,0.00051251,120]
[355852222,1741635316159,-345.231322,0.00051251,120]
[355852223,1741635316239,-345.231322,0.00051251,120]
[355852225,1741635316312,-345.231322,0.00051251,120]
[355852227,1741635316392,-345.231322,0.00051251,120]
[355852229,1741635316473,-345.231322,0.00051251,120]
[355852232,1741635316562,-151.0,0.00051251,120]
[355852234,1741635316644,-345.231322,0.00051251,120]
[355852235,1741635316718,-345.231322,0.00051251,120]
[355852238,1741635316799,-297.761323,0.00051251,120]
[355852240,1741635316884,-151.0,0.00051251,120]
[355852242,1741635316968,-229.582432,0.00051251,120]
[355852244,1741635317052,-151.0,0.00051278,120]
[355852246,1741635317133,-151.0,0.00051278,120]
[355852248,1741635317216,-151.0,0.00051278,120]
[355852249,1741635317295,-151.0,0.00051278,120]
[355852252,1741635317378,-151.0,0.00051278,120]
[355852254,1741635317459,-274.46174,0.00051278,120]
[355852255,1741635317543,-151.0,0.00051278,120]
[355852258,1741635317623,-151.0,0.00051278,120]
[355852260,1741635317703,-234.244768,0.00051278,120]
[355852261,1741635317782,-157.203698,0.00051278,120]
[355852264,1741635317861,-157.203698,0.00051278,120]
[355852266,1741635317949,-157.203698,0.00051278,120]
[355852267,1741635318031,-151.0,0.00051278,120]
[355852270,1741635318112,-151.0,0.00051278,120]
[355852272,1741635318200,-151.0,0.00051278,120]
[355852274,1741635318285,-194.189392,0.00051278,120]
[355852276,1741635318364,-209.655223,0.00051279,120]
[355852278,1741635318449,-151.0,0.00051279,110]
[355852280,1741635318528,-151.0,0.00051279,110]
[355852282,1741635318610,-151.0,0.00051279,110]
[355852283,1741635318688,-151.0,0.00051279,110]
[355852286,1741635318776,-151.0,0.00051279,120]
[355852288,1741635318858,-1000.0,0.000513,65]
[355852290,1741635318939,-184.75,0.000513,30]
[355852292,1741635319040,-1641.46,0.000513,30]
[355852294,1741635319125,-9841.18,0.00051496,120]
[355852295,1741635319209,-500.0,0.00051506,120]
[355852298,1741635319293,-500.0,0.00051506,120]
[355852299,1741635319372,-500.0,0.00051506,120]
[355852302,1741635319454,-500.0,0.00051506,120]
[355852304,1741635319533,-500.0,0.00051506,120]
[355852305,1741635319613,-500.0,0.00051506,120]
[355852308,1741635319697,-500.0,0.00051506,120]
[355852310,1741635319776,-500.0,0.00051506,120]
[355852312,1741635319852,-500.0,0.00051506,120]
[355852314,1741635319931,-753.12,0.00051506,120]
[355852315,1741635320013,-1971.95,0.00051506,120]
[355852318,1741635320093,-500.0,0.00051506,120]
[355852319,1741635320172,-500.0,0.00051506,120]
[355852322,1741635320249,-500.0,0.00051506,120]
[355852324,1741635320329,-500.0,0.00051506,120]
[355852328,1741635320591,-500.0,0.00051506,120]
[355852330,1741635320663,-500.0,0.00051506,120]
[355852332,1741635320737,-500.0,0.00051506,120]
[355852334,1741635320809,-500.0,0.00051506,120]
[355852336,1741635320877,-1641.76,0.00051506,120]
[355852338,1741635320950,-649.83,0.00051506,120]
[355852340,1741635321024,-500.0,0.00051506,120]
[355852342,1741635321093,-500.0,0.00051506,120]
[355852344,1741635321164,-7900.94,0.00051506,60]
[355852346,1741635321239,-786.26,0.00051506,120]
[355852348,1741635321305,-500.0,0.00051506,120]
[355852349,1741635321377,-683.31,0.00051506,120]
[355852350,1741635321451,-500.0,0.00051506,120]
[355852351,1741635321524,-500.0,0.00051506,120]
[355852352,1741635321596,-500.0,0.00051506,120]
[355852355,1741635321673,-1391.87,0.00051506,120]
[355852357,1741635321755,-980.66,0.00051506,120]
[355852359,1741635321835,-618.9,0.00051506,120]
[355852361,1741635321912,-576.18,0.00051506,120]
[355852363,1741635321991,-611.25,0.00051506,120]
[355852364,1741635322069,-787.73,0.00051506,120]
[355852367,1741635322149,-500.0,0.00051506,120]
[355852369,1741635322233,-6359.29,0.00051506,120]
[355852371,1741635322299,-500.0,0.00051506,120]
[355852373,1741635322373,-1395.56,0.00051506,120]
[355852375,1741635322456,-500.0,0.00051506,120]
[355852377,1741635322537,-500.0,0.00051506,120]
[355852379,1741635322620,-864.73,0.00051506,120]
[355852381,1741635322709,-500.0,0.00051506,120]
[355852383,1741635322790,-1864.41,0.00051506,120]
[355852385,1741635322865,-500.0,0.00051506,120]
[355852387,1741635322949,-8339.35,0.00051506,120]
[355852389,1741635323033,-500.0,0.00051506,120]
[355852391,1741635323113,-500.0,0.00051506,120]
[355852393,1741635323195,-500.0,0.00051506,120]
[355852395,1741635323278,-1847.91,0.00051506,120]
[355852397,1741635323356,-500.0,0.00051506,120]
[355852399,1741635323433,-500.0,0.00051506,120]
[355852401,1741635323514,-500.0,0.00051506,120]
[355852403,1741635323591,-1455.45,0.00051506,120]
[355852405,1741635323669,-2074.1,0.00051506,120]
[355852407,1741635323748,-500.0,0.00051506,120]
[355852409,1741635323823,-500.0,0.00051506,120]
[355852411,1741635323900,-589.45,0.00051506,120]
[355852413,1741635323974,-500.0,0.00051506,120]
[355852415,1741635324052,-500.0,0.00051506,120]
[355852417,1741635324132,-35878.75,0.00051506,120]
[355852419,1741635324209,-1000.0,0.00051506,120]
[355852421,1741635324287,-500.0,0.00051506,120]
[355852422,1741635324363,-513.57,0.00051506,120]
[355852424,1741635324440,-2432.35,0.00051506,120]
[355852426,1741635324519,-500.0,0.00051506,120]
[355852429,1741635324595,-500.0,0.00051506,120]
[355852431,1741635324672,-895.88,0.00051506,120]
[355852433,1741635324750,-3119.03,0.00051506,120]
[355852434,1741635324827,-501.86,0.00051506,120]
[355852437,1741635324905,-500.0,0.00051506,120]
[355852438,1741635324979,-311.75275172,0.00051506,120]
[355852441,1741635325060,-500.0,0.00051506,120]
[355852443,1741635325142,-9198.36,0.00051506,120]
[355852445,1741635325220,-500.0,0.00051506,120]
[355852447,1741635325299,-500.0,0.00051506,120]
[355852449,1741635325377,-500.0,0.00051506,120]
[355852451,1741635325458,-628.41,0.00051506,120]
[355852453,1741635325534,-500.0,0.00051506,120]
[355852455,1741635325610,-2274.36,0.00051506,120]
[355852457,1741635325686,-668.25,0.00051506,120]
[355852458,1741635325765,-500.0,0.00051506,120]
[355852461,1741635325841,-500.0,0.00051506,120]
[355852463,1741635325918,-500.0,0.00051506,120]
[355852464,1741635325995,-3281.43,0.00051506,120]
[355852467,1741635326078,-1142.78,0.00051506,120]
[355852469,1741635326158,-500.0,0.00051506,120]
[355852471,1741635326238,-500.0,0.00051506,120]
[355852473,1741635326314,-500.0,0.00051506,120]
[355852474,1741635326395,-1366.1,0.00051506,120]
[355852477,1741635326477,-500.0,0.00051506,120]
[355852478,1741635326557,-500.0,0.00051506,120]
[355852481,1741635326635,-500.0,0.00051506,120]
[355852483,1741635326717,-500.0,0.00051506,120]
[355852485,1741635326794,-500.0,0.00051506,120]
[355852487,1741635326872,-500.0,0.00051506,120]
[355852489,1741635326954,-500.0,0.00051506,120]
[355852491,1741635327035,-779.37,0.00051506,120]
[355852493,1741635327122,-500.0,0.00051506,120]
[355852495,1741635327204,-1155.91,0.00051506,120]
[355852497,1741635327288,-5746.79,0.00051506,120]
[355852499,1741635327355,-500.0,0.00051506,120]
[355852501,1741635327429,-500.0,0.00051506,120]
[355852503,1741635327507,-1565.3,0.00051506,120]
[355852504,1741635327586,-1234.92,0.00051506,120]
[355852507,1741635327667,-576.71,0.00051506,120]
[355852509,1741635327745,-10283.92,0.00051506,120]
[355852511,1741635327825,-223.19388701,0.00051506,120]
[355852513,1741635327907,-642.88,0.00051506,120]
[355852515,1741635327989,-500.0,0.00051506,120]
[355852517,1741635328070,-1531.33,0.00051506,120]
[355852519,1741635328155,-2059.24,0.00051506,120]
[355852521,1741635328235,-512.79767958,0.00051506,120]
[355852523,1741635328315,-500.0,0.00051506,120]
[355852525,1741635328395,-500.0,0.00051506,120]
[355852527,1741635328473,-969.22,0.00051506,120]
[355852529,1741635328550,-5529.22,0.00051506,120]
[355852533,1741635328626,-500.0,0.00051506,120]
[355852536,1741635328944,-760.6,0.00051506,120]
[355852538,1741635329014,-500.0,0.00051506,120]
[355852540,1741635329083,-616.83,0.00051506,120]
[355852542,1741635329153,-500.0,0.00051506,120]
[355852544,1741635329235,-3643.64,0.00051506,120]
[355852547,1741635329306,-500.0,0.00051506,120]
[355852548,1741635329382,-856.77,0.00051506,120]
[355852551,1741635329460,-522.11651504,0.00051506,120]
[355852552,1741635329535,-500.0,0.00051506,120]
[355852554,1741635329601,-704.65,0.00051506,120]
[355852555,1741635329667,-2315.64,0.00051506,120]
[355852556,1741635329732,-500.0,0.00051506,120]
[355852557,1741635329798,-951.52,0.00051506,120]
[355852559,1741635329862,-593.56,0.00051506,120]
[355852561,1741635329929,-500.0,0.00051506,120]
[355852564,1741635330005,-500.0,0.00051506,120]
[355852566,1741635330084,-798.39,0.00051506,120]
[355852568,1741635330164,-500.0,0.00051506,120]
[355852570,1741635330244,-9407.99,0.00051506,120]
[355852571,1741635330324,-500.0,0.00051506,120]
[355852574,1741635330402,-2243.67,0.00051506,120]
[355852576,1741635330480,-500.0,0.00051506,120]
[355852578,1741635330557,-514.42785347,0.00051506,120]
[355852580,1741635330634,-820.04,0.00051506,120]
[355852582,1741635330711,-500.0,0.00051506,120]
[355852584,1741635330788,-500.0,0.00051506,120]
[355852586,1741635330867,-815.36,0.00051506,120]
[355852588,1741635330945,-860.18,0.00051506,120]
[355852590,1741635331025,-500.0,0.00051506,120]
[355852591,1741635331102,-1100.44,0.00051506,120]
[355852594,1741635331183,-500.0,0.00051506,120]
[355852596,1741635331259,-500.0,0.00051506,120]
[355852598,1741635331336,-1478.73,0.00051506,120]
[355852600,1741635331412,-853.85,0.00051506,120]
[355852602,1741635331489,-500.0,0.00051506,120]
[355852604,1741635331566,-2026.71,0.00051506,120]
[355852606,1741635331644,-1230.26,0.00051506,120]
[355852608,1741635331721,-2062.52,0.00051506,120]
[355852610,1741635331796,-8461.42,0.00051506,120]
[355852612,1741635331872,-826.94,0.00051506,120]
[355852614,1741635331951,-568.14,0.00051506,30]
[355852616,1741635332031,-730.52,0.00051506,120]
[355852617,1741635332111,-500.0,0.00051506,120]
[355852620,1741635332194,-1362.72,0.00051506,120]
[355852621,1741635332272,-898.69,0.00051506,120]
[355852623,1741635332347,-500.0,0.00051506,120]
[355852625,1741635332420,-8437.24,0.00051506,120]
[355852627,1741635332495,-1044.86,0.00051506,120]
[355852630,1741635332571,-1707.87,0.00051506,120]
[355852632,1741635332645,-1111.35,0.00051506,120]
[355852634,1741635332720,-618.73,0.00051506,120]
[355852636,1741635332798,-716.97,0.00051506,120]
[355852637,1741635332877,-500.0,0.00051506,120]
[355852639,1741635332955,-1423.76,0.00051506,120]
[355852642,1741635333031,-814.36,0.00051506,120]
[355852643,1741635333111,-1149.08,0.00051506,120]
[355852645,1741635333191,-500.0,0.00051506,120]
[355852648,1741635333275,-500.0,0.00051506,120]
[355852650,1741635333359,-1161.71,0.00051506,120]
[355852652,1741635333441,-500.0,0.00051506,120]
[355852654,1741635333528,-500.0,0.00051506,120]
[355852656,1741635333607,-500.0,0.00051506,120]
[355852658,1741635333686,-1592.46,0.00051506,120]
[355852659,1741635333766,-858.08,0.00051506,120]
[355852661,1741635333845,-3230.62,0.00051506,120]
[355852663,1741635333924,-500.0,0.00051506,120]
[355852666,1741635334004,-1019.85,0.00051506,120]
[355852668,1741635334087,-2631.0,0.00051506,120]
[355852669,1741635334173,-3700.98,0.00051506,120]
[355852672,1741635334259,-500.0,0.00051506,120]
[355852673,1741635334338,-621.98,0.00051506,120]
[355852676,1741635334419,-500.0,0.00051506,120]
[355852678,1741635334499,-500.0,0.00051506,120]
[355852679,1741635334577,-899.81,0.00051506,120]
[355852682,1741635334657,-3744.89,0.00051506,120]
[355852684,1741635334735,-507.23,0.00051506,120]
[355852686,1741635334812,-930.1,0.00051506,120]
[355852688,1741635334889,-500.0,0.00051506,120]
[355852689,1741635334965,-500.0,0.00051506,120]
[355852692,1741635335043,-500.0,0.00051506,120]
[355852693,1741635335123,-2361.72,0.00051506,120]
[355852696,1741635335200,-604.77,0.00051506,120]
[355852698,1741635335282,-1945.21,0.00051506,120]
[355852699,1741635335359,-599.26,0.00051506,120]
[355852701,1741635335438,-2734.65,0.00051506,120]
[355852704,1741635335518,-500.0,0.00051506,120]
[355852706,1741635335593,-500.0,0.00051506,120]
[355852708,1741635335670,-500.0,0.00051506,120]
[355852710,1741635335746,-2534.35,0.00051506,120]
[355852712,1741635335822,-455.19595499,0.00051506,120]
[355852714,1741635335898,-460.92,0.000516,30]
[355852716,1741635335975,-500.0,0.0005178,120]
[355852718,1741635336051,-500.0,0.0005178,120]
[355852719,1741635336131,-500.0,0.0005178,120]
[355852721,1741635336213,-523.44998066,0.0005178,120]
[355852724,1741635336292,-500.0,0.0005178,120]
[355852726,1741635336369,-525.86326037,0.0005178,120]
[355852727,1741635336450,-500.0,0.0005178,120]
[355852730,1741635336533,-500.0,0.0005178,120]
[355852731,1741635336610,-500.0,0.0005178,120]
[355852734,1741635336690,-753.12,0.0005178,120]
[355852735,1741635336770,-1971.95,0.0005178,120]
[355852738,1741635336849,-157.203698,0.0005178,120]
[355852742,1741635337072,-500.0,0.0005178,120]
[355852744,1741635337187,-500.0,0.0005178,120]
[355852746,1741635337262,-500.0,0.0005178,120]
[355852748,1741635337332,-500.0,0.0005178,120]
[355852751,1741635337408,-500.0,0.0005178,120]
[355852753,1741635337488,-500.0,0.0005178,120]
[355852755,1741635337567,-500.0,0.0005178,120]
[355852756,1741635337645,-1641.76,0.0005178,120]
[355852759,1741635337723,-649.83,0.0005178,120]
[355852760,1741635337790,-500.0,0.0005178,120]
[355852761,1741635337863,-500.0,0.0005178,120]
[355852762,1741635337934,-7900.94,0.0005178,60]
[355852764,1741635338014,-786.26,0.0005178,120]
[355852766,1741635338093,-500.0,0.0005178,120]
[355852768,1741635338173,-683.31,0.0005178,120]
[355852770,1741635338258,-500.0,0.0005178,120]
[355852772,1741635338338,-500.0,0.0005178,120]
[355852774,1741635338419,-500.0,0.0005178,120]
[355852776,1741635338500,-1391.87,0.0005178,120]
[355852778,1741635338583,-980.66,0.0005178,120]
[355852780,1741635338663,-618.9,0.0005178,120]
[355852782,1741635338741,-576.18,0.0005178,120]
[355852783,1741635338820,-611.25,0.0005178,120]
[355852786,1741635338899,-787.73,0.0005178,120]
[355852787,1741635338981,-500.0,0.0005178,120]
[355852790,1741635339065,-6359.29,0.0005178,120]
[355852792,1741635339147,-500.0,0.0005178,120]
[355852794,1741635339229,-1395.56,0.0005178,120]
[355852795,1741635339308,-500.0,0.0005178,120]
[355852797,1741635339377,-500.0,0.0005178,120]
[355852799,1741635339444,-864.73,0.0005178,120]
[355852802,1741635339517,-500.0,0.0005178,120]
[355852804,1741635339603,-1864.41,0.0005178,120]
[355852805,1741635339693,-500.0,0.0005178,120]
[355852808,1741635339784,-8339.35,0.0005178,120]
[355852810,1741635339865,-500.0,0.0005178,120]
[355852812,1741635339947,-500.0,0.0005178,120]
[355852813,1741635340034,-500.0,0.0005178,120]
[355852816,1741635340125,-1847.91,0.0005178,120]
[355852818,1741635340212,-500.0,0.0005178,120]
[355852820,1741635340295,-540.84674822,0.0005178,120]
[355852821,1741635340378,-500.0,0.0005178,120]
[355852824,1741635340460,-500.0,0.0005178,120]
[355852826,1741635340538,-1455.45,0.0005178,120]
[355852828,1741635340614,-2074.1,0.0005178,120]
[355852830,1741635340691,-500.0,0.0005178,120]
[355852831,1741635340775,-589.45,0.0005178,120]
[355852833,1741635340855,-500.0,0.0005178,120]
[355852835,1741635340928,-500.0,0.0005178,120]
[355852837,1741635341007,-35878.75,0.0005178,120]
[355852840,1741635341085,-1000.0,0.0005178,120]
[355852842,1741635341169,-500.0,0.0005178,120]
[355852843,1741635341251,-513.57,0.0005178,120]
[355852846,1741635341332,-2432.35,0.0005178,120]
[355852848,1741635341409,-500.0,0.0005178,120]
[355852849,1741635341488,-500.0,0.0005178,120]
[355852852,1741635341563,-895.88,0.0005178,120]
[355852854,1741635341640,-3119.03,0.0005178,120]
[355852855,1741635341717,-501.86,0.0005178,120]
[355852857,1741635341794,-500.0,0.0005178,120]
[355852859,1741635341873,-500.0,0.0005178,120]
[355852862,1741635341951,-9198.36,0.0005178,120]
[355852864,1741635342034,-500.0,0.0005178,120]
[355852866,1741635342119,-500.0,0.0005178,120]
[355852868,1741635342210,-500.0,0.0005178,120]
[355852870,1741635342292,-628.41,0.0005178,120]
[355852871,1741635342375,-2274.36,0.0005178,120]
[355852874,1741635342453,-500.0,0.0005178,120]
[355852876,1741635342538,-668.25,0.0005178,120]
[355852878,1741635342622,-500.0,0.0005178,120]
[355852879,1741635342705,-500.0,0.0005178,120]
[355852882,1741635342794,-500.0,0.0005178,120]
[355852884,1741635342877,-3281.43,0.0005178,120]
[355852886,1741635342966,-1142.78,0.0005178,120]
[355852888,1741635343048,-500.0,0.0005178,120]
[355852890,1741635343133,-500.0,0.0005178,120]
[355852892,1741635343221,-500.0,0.0005178,120]
[355852894,1741635343304,-1366.1,0.0005178,120]
[355852896,1741635343389,-500.0,0.0005178,120]
[355852898,1741635343473,-500.0,0.0005178,120]
[355852900,1741635343555,-500.0,0.0005178,120]
[355852902,1741635343636,-500.0,0.0005178,120]
[355852903,1741635343719,-500.0,0.0005178,120]
[355852906,1741635343801,-500.0,0.0005178,120]
[355852908,1741635343881,-638.82456056,0.0005178,120]
[355852909,1741635343967,-779.37,0.0005178,120]
[355852912,1741635344046,-500.0,0.0005178,120]
[355852914,1741635344131,-1155.91,0.0005178,120]
[355852915,1741635344219,-5746.79,0.0005178,120]
[355852918,1741635344302,-500.0,0.0005178,120]
[355852920,1741635344382,-500.0,0.0005178,120]
[355852921,1741635344460,-1565.3,0.0005178,120]
[355852924,1741635344534,-1234.92,0.0005178,120]
[355852926,1741635344611,-576.71,0.0005178,120]
[355852928,1741635344688,-10283.92,0.0005178,120]
[355852930,1741635344765,-642.88,0.0005178,120]
[355852931,1741635344844,-500.0,0.0005178,120]
[355852933,1741635344921,-1531.33,0.0005178,120]
[355852935,1741635344999,-2059.24,0.0005178,120]
[355852938,1741635345077,-500.0,0.0005178,120]
[355852939,1741635345156,-969.22,0.0005178,120]
[355852942,1741635345238,-500.0,0.0005178,120]
[355852943,1741635345316,-5529.22,0.0005178,120]
[355852945,1741635345392,-500.0,0.0005178,120]
[355852950,1741635345650,-760.6,0.0005178,120]
[355852952,1741635345716,-500.0,0.0005178,120]
[355852954,1741635345777,-616.83,0.0005178,120]
[355852956,1741635345838,-500.0,0.0005178,120]
[355852958,1741635345902,-500.0,0.0005178,120]